Cogmind - Beta 13 @@@ ROGUE MODE // 2024.03.28 @ 01:50:13 Player: Desymo99 Result: Destroyed by G-47 Trooper with Particle Gun Performance ------------- Evolutions (2) 1000 Regions Visited (5) 1000 Robots Destroyed (63) 315 Value Destroyed (1847) 1847 Prototype IDs (25) 500 Alien Tech Used (0) 0 Bonus (300) 300 TOTAL SCORE: 4962 Bonus ------- Aligned with FarCom 300 Cogmind --------- Core Integrity 0/550 Matter 288/300 Energy 259/290 System Corruption 0% Temperature Cool (9) Movement Core (250) Ox4 Location -8/Materials Parts ------- > --- POWER (1) -------- Reinforced Deuterium Engine > --- PROPULSION (3) --- (None) > --- UTILITY (3) ------ (None) > --- WEAPON (4) ------- (None) > --- INVENTORY (5) ---- Aluminum Leg Improved Cooling System Huge Storage Unit Transport Network Coupler Missile Launcher Peak State ------------ > --- POWER ------------ Deuterium Engine > --- PROPULSION ------- Aluminum Leg Improved Aluminum Leg Carbon-fiber Leg > --- UTILITY ---------- Improved Cooling System Large Storage Unit Structural Scanner > --- WEAPON ----------- Advanced Beam Cannon Advanced Beam Cannon AWS/Gauss > --- INVENTORY -------- Aluminum Leg Carbon-fiber Leg Improved Cooling System Huge Storage Unit Sensor Array Improved Signal Interpreter Improved Terrain Scanner Transport Network Coupler Targeting Computer ECM Suite Particle Gun Beam Cannon Missile Launcher Missile Launcher Mace [Rating: 40] Favorites ----------- Power Ion Engine Engine Ion Engine Power Core Light Nuclear Core Propulsion Aluminum Leg Leg Aluminum Leg Utility Large Storage Unit Device Improved Heat Sink Storage Large Storage Unit Weapon Beam Cannon Energy Gun Particle Gun Energy Cannon Beam Cannon Ballistic Gun AWS/Gauss Launcher Grenade Launcher Special Melee Weapon Datajack Build | -11 -10 -10 -10 -9 -8 ------- Run | Yrd Mat Min Exi Min Mat Slots Evolved 4 | . . . . . 4 Power . | . . . . . . Propulsion 1 | . . . . . 1 Utility 1 | . . . . . 1 Weapon 2 | . . . . . 2 Parts Attached 56 | 7 7 14 1 11 16 Power 10 | 1 2 3 . 1 3 Engine 9 | 1 2 3 . . 3 Core 1 | . . . . 1 . Reactor . | . . . . . . Propulsion 12 | 2 . 3 . 3 4 Treads . | . . . . . . Leg 12 | 2 . 3 . 3 4 Wheel . | . . . . . . Hover . | . . . . . . Flight . | . . . . . . Utility 12 | 2 3 2 . 1 4 Device 9 | 1 1 2 . 1 4 Storage 3 | 1 2 . . . . Processor . | . . . . . . Hackware . | . . . . . . Protection . | . . . . . . Artifact . | . . . . . . Weapon 22 | 2 2 6 1 6 5 Energy Gun 4 | 1 . 1 . 1 1 Energy Cannon 8 | . 2 2 . 1 3 Ballistic Gun 4 | 1 . 1 1 . 1 Ballistic Cannon . | . . . . . . Launcher 5 | . . 1 . 4 . Special Weapon . | . . . . . . Impact Weapon . | . . . . . . Slashing Weapon . | . . . . . . Piercing Weapon . | . . . . . . Special Melee Weapon 1 | . . 1 . . . Unidentified Prototypes 2 | . . . . . 2 Parts Lost 9 | . . 1 . 1 7 Power 1 | . . . . . 1 Propulsion 3 | . . . . 1 2 Utility 3 | . . . . . 3 Weapon 2 | . . 1 . . 1 Highest Loss Streak 7 | . . 1 . 1 7 To Critical Strikes . | . . . . . . Average Slot Usage (%) 96 | . 100 99 93 99 87 Engine 9 | . 14 14 14 . 6 Core 3 | . . . . 13 2 Leg 27 | . 28 28 28 27 25 Device 14 | . 14 14 14 14 17 Storage 12 | . 14 14 14 14 8 Energy Gun 1 | . . 2 7 . 1 Energy Cannon 16 | . 26 19 7 . 16 Ballistic Gun 4 | . . 5 6 . 8 Launcher 5 | . . . . 24 . Naked Turns 3 | . . . . . 3 Heaviest Build 50 | 13 32 32 34 36 50 Greatest Support 38 | 20 20 20 20 20 38 Greatest Overweight (x) 12 | . 1 1 1 1 12 Average Overweight (x) . | . . 1 1 1 1 Largest Inventory Capacity 15 | 8 15 15 15 15 15 Average Capacity 14 | 7 14 15 15 15 14 Most Carried 15 | 7 15 15 15 15 15 Average Carried 13 | 4 13 14 14 14 14 Final Capacity 15 | 8 15 15 15 15 5 Final Carried 15 | 7 15 15 15 15 5 Class Distribution -------------------- 41% | Scavenger-Mutant 34% | Mutant 19% | Skirmisher 4% | Scavenger-Skirmisher Dominant Class ---------------- Mutant | -10/Materials Scavenger-Mutant | -10/Mines Scavenger-Mutant | -10/Exiles Scavenger-Mutant | -9/Mines Skirmisher | -8/Materials Resources | -11 -10 -10 -10 -9 -8 ----------- Run | Yrd Mat Min Exi Min Mat Matter Collected 981 | 287 77 141 . 336 140 Remotely . | . . . . . . Salvage Created 2395 | 196 337 347 . 206 1309 Parts 143 | 14 21 26 . 15 67 Haulers Intercepted 2 | . 2 . . . . Recyclers Shooed 2 | 1 . 1 . . . Parts Field Recycled . | . . . . . . Retrieved Matter . | . . . . . . Parts Self-Destructed . | . . . . . . Prevented . | . . . . . . Kills | -11 -10 -10 -10 -9 -8 ------- Run | Yrd Mat Min Exi Min Mat Combat Hostiles Destroyed 51 | . 5 11 . 15 20 Guns 22 | . 1 . . 4 17 Cannons 16 | . 4 8 . 1 3 AOE 13 | . . 3 . 10 . Classes Destroyed 15 | 3 4 1 . 2 5 Worker 5 | 1 . 3 . 1 . Builder 3 | . . . . . 3 Tunneler 4 | 4 . . . . . Hauler 2 | . 2 . . . . Recycler 2 | 1 . . . . 1 Operator 1 | . 1 . . . . Watcher 4 | . 1 . . . 3 Swarmer 8 | . . 6 . 2 . Grunt 22 | . 5 5 . 2 10 Brawler 1 | . . . . . 1 Duelist 1 | . . . . . 1 Sentry 7 | . . . . 2 5 Specialist 2 | . . . . . 2 Heavy 1 | . . . . . 1 Assembled 9 | . . . . 9 . Best Kill Streak 7 | 2 2 3 . 4 7 Combat Bots Only 6 | . 2 3 . 4 6 Max Kills in Single Turn 3 | 1 1 3 . 3 2 Gunslinging . | . . . . . . Exploded 3 | . . 3 . 2 . Melee . | . . . . . . Uniques/NPCs Destroyed . | . . . . . . Combat | -11 -10 -10 -10 -9 -8 -------- Run | Yrd Mat Min Exi Min Mat Hostile Shots Fired 213 | . 27 49 . 26 111 Missed 66 | . 11 13 . 12 30 Damage Taken 2414 | . 188 484 . 227 1515 Core 679 | . . 89 . 39 551 Absorbed by Shields . | . . . . . . Core Remaining (%) 74 | 100 . . . 48 . Volleys Fired 95 | 17 23 28 . 14 13 Largest 2 | 2 2 2 . 2 2 Hottest 136 | 60 120 120 . 125 136 Shots Fired 288 | 33 46 52 . 37 120 Gun 157 | 33 14 2 . 13 95 Cannon 109 | . 32 49 . 3 25 Launcher 22 | . . 1 . 21 . Special . | . . . . . . Kinetic 131 | 17 7 2 . 10 95 Thermal 135 | 16 39 49 . 6 25 Explosive 22 | . . 1 . 21 . Electromagnetic . | . . . . . . Robot Hit Streak 15 | 9 7 8 . 8 15 Robot Miss Streak 4 | 4 3 1 . 2 3 Penetration Max 1 | . . . . . 1 Secondary Targets . | . . . . . . Autonomous 106 | . . . . 10 96 Shots Hit Robots 189 | 21 32 30 . 15 91 Core Hits 97 | 8 12 16 . 25 36 Critical Kills . | . . . . . . Critical Parts Destroyed . | . . . . . . Critical Strikes . | . . . . . . Melee Attacks 2 | . . 2 . . . Impact . | . . . . . . Slashing . | . . . . . . Piercing . | . . . . . . Sneak Attacks . | . . . . . . Combat Hostiles . | . . . . . . Follow-up Attacks . | . . . . . . Damage Inflicted 4913 | 231 489 752 . 839 2602 Guns 2932 | 231 102 . . 323 2276 Cannons 1296 | . 387 567 . 17 325 Explosions 684 | . . 185 . 499 . Melee . | . . . . . . Ramming 1 | . . . . . 1 Kinetic 2671 | 76 32 . . 287 2276 Thermal 1608 | 155 457 618 . 53 325 Explosive 633 | . . 134 . 499 . Electromagnetic . | . . . . . . Impact . | . . . . . . Slashing . | . . . . . . Piercing . | . . . . . . Highest Corruption . | . . . . . . Average Corruption . | . . . . . . Corruption Purged . | . . . . . . Corruption Blocked . | . . . . . . Overload Shots . | . . . . . . Overflow Damage 45 | . 12 7 . 16 10 Projectiles 29 | . 12 7 . . 10 Explosions 16 | . . . . 16 . Melee . | . . . . . . Knockbacks . | . . . . . . Impact . | . . . . . . Kinetic . | . . . . . . Secondary . | . . . . . . Self-Inflicted Damage . | . . . . . . Shots . | . . . . . . Rammed 1 | . . . . . 1 Targets Rammed 1 | . . . . . 1 Kicked . | . . . . . . Crushed . | . . . . . . Highest Temperature 672 | 40 195 237 . 54 672 Average Temperature 114 | 16 61 88 . 26 342 Received Heat Transfer 1041 | . 105 258 . 21 657 Effects 10 | . . . . . 10 Shutdowns 1 | . . . . . 1 Energy Bleed 2 | . . . . . 2 Interference 1 | . . . . . 1 Short Circuit 1 | . . . . . 1 Damage (minor) 2 | . . . . . 2 Damage (major) 3 | . . . . . 3 Siege Activations . | . . . . . . Robots Corrupted . | . . . . . . Combat Hostiles . | . . . . . . Parts Fried . | . . . . . . Impact Corruptions . | . . . . . . Robots Melted . | . . . . . . Combat Hostiles . | . . . . . . Parts Melted 4 | . 1 2 . . 1 Heat Transferred 3301 | 350 964 1284 . 111 592 Parts Sabotaged . | . . . . . . Parts Stolen . | . . . . . . Parts Stripped . | . . . . . . Power Chain Reactions . | . . . . . . Alert | -11 -10 -10 -10 -9 -8 ------- Run | Yrd Mat Min Exi Min Mat Peak Influence 337 | 30 96 257 . 168 337 Initial 19 | . 19 . . . . Average 78 | 10 25 99 . 47 153 Maximum Alert Level 1 | . . 1 . . 1 Low Security (%) 87 | 100 100 83 . 100 65 Level 1 12 | . . 16 . . 34 Level 2 . | . . . . . . Level 3 . | . . . . . . Level 4 . | . . . . . . Level 5 . | . . . . . . High Security . | . . . . . . Max Security . | . . . . . . Squads Dispatched 6 | . 1 . . . 5 Investigation 1 | . . . . . 1 Extermination . | . . . . . . Reinforcement 5 | . 1 . . . 4 Assault . | . . . . . . Garrison . | . . . . . . Intercept . | . . . . . . Searches Triggered . | . . . . . . Construction Impeded . | . . . . . . Haulers Reinforced . | . . . . . . Active Scanning Responses . | . . . . . . Cargo Convoy Interrupts . | . . . . . . Stealth | -11 -10 -10 -10 -9 -8 --------- Run | Yrd Mat Min Exi Min Mat Distress Signals 1 | . . 1 . . . Communications Jammed . | . . . . . . Distress Signals . | . . . . . . Times Spotted 60 | . 9 11 . 15 25 Peak Tracking Total 4 | . 2 3 . 3 4 Tactical Retreats 2 | . 1 . . 1 . Traps | -11 -10 -10 -10 -9 -8 ------- Run | Yrd Mat Min Exi Min Mat Traps Triggered . | . . . . . . Indirectly . | . . . . . . Trap Hack Attempts . | . . . . . . Triggered . | . . . . . . Disarmed . | . . . . . . Reprogrammed . | . . . . . . Reused . | . . . . . . Traps Extracted . | . . . . . . Installed . | . . . . . . Triggered . | . . . . . . Machines | -11 -10 -10 -10 -9 -8 ---------- Run | Yrd Mat Min Exi Min Mat Machines Disabled 9 | . . 3 . 4 2 Max in Single Turn 2 | . . 1 . 2 1 Machines Repaired . | . . . . . . Machines Dismantled . | . . . . . . Machines Sabotaged . | . . . . . . Overloaded Fab Kills . | . . . . . . Hacking | -11 -10 -10 -10 -9 -8 --------- Run | Yrd Mat Min Exi Min Mat Machines Accessed 13 | . 7 . 1 . 5 Terminals 10 | . 6 . . . 4 Fabricators . | . . . . . . Repair Stations . | . . . . . . Recycling Units 2 | . 1 . . . 1 Scanalyzers . | . . . . . . Garrison Access . | . . . . . . Total Hacks 30 | . 16 . 1 . 13 Successful 18 | . 11 . 1 . 6 Failed 12 | . 5 . . . 7 Catastrophic 1 | . 1 . . . . Database Lockouts . | . . . . . . Manual 30 | . 16 . 1 . 13 Terminals 24 | . 14 . . . 10 Fabricators . | . . . . . . Repair Stations . | . . . . . . Recycling Units 5 | . 2 . . . 3 Scanalyzers . | . . . . . . Garrison Access . | . . . . . . Terminal Hacks 7 | . 5 . 1 . 1 Part Schematic 1 | . 1 . . . . Robot Analysis 2 | . 2 . . . . Terminal Index 1 | . 1 . . . . Locate Traps 2 | . 1 . . . 1 Derelict Proto ID Bank 1 | . . . 1 . . Fabricator Hacks . | . . . . . . Repair Station Hacks . | . . . . . . Recycling Unit Hacks 1 | . 1 . . . . Report Inventory 1 | . 1 . . . . Scanalyzer . | . . . . . . Garrison Access Hacks . | . . . . . . Unauthorized Hacks 10 | . 5 . . . 5 Terminals 7 | . 4 . . . 3 Botnet 6 | . 3 . . . 3 Operators 1 | . 1 . . . . Fabricators . | . . . . . . Repair Stations . | . . . . . . Recycling Units 3 | . 1 . . . 2 Reject 2 | . 1 . . . 1 Mask 1 | . . . . . 1 Scanalyzers . | . . . . . . Garrison Access . | . . . . . . Data Cores Recovered . | . . . . . . Used . | . . . . . . Hacking Detections 12 | . 7 . . . 5 Full Trace Events 1 | . . . . . 1 Feedback Events . | . . . . . . Feedback Blocked . | . . . . . . Robot Schematics Acquired . | . . . . . . Robots Built . | . . . . . . Authchips . | . . . . . . Time . | . . . . . . Total Robot Build Rating . | . . . . . . Part Schematics Acquired 1 | . 1 . . . . Parts Built . | . . . . . . Authchips . | . . . . . . Time . | . . . . . . Total Part Build Rating . | . . . . . . Parts Repaired . | . . . . . . Time . | . . . . . . Parts Recycled . | . . . . . . Recycled Matter . | . . . . . . Retrieved Matter . | . . . . . . Retrieved Components . | . . . . . . Parts Scanalyzed . | . . . . . . Part Schematics Acquired . | . . . . . . Parts Damaged . | . . . . . . Bothacking | -11 -10 -10 -10 -9 -8 ------------ Run | Yrd Mat Min Exi Min Mat Used RIF Installer . | . . . . . . Robots Hacked . | . . . . . . Non-combat . | . . . . . . Combat . | . . . . . . Robot Hacks Applied . | . . . . . . Relay Couplers Released . | . . . . . . Fabnet Peak Effective % . | . . . . . . Robots Rewired . | . . . . . . Allies Hacked . | . . . . . . Hacks Repelled . | . . . . . . Allies | -11 -10 -10 -10 -9 -8 -------- Run | Yrd Mat Min Exi Min Mat Total Allies . | . . . . . . Largest Group . | . . . . . . Highest-Rated Group . | . . . . . . Highest-Rated Ally . | . . . . . . Total Orders . | . . . . . . Ally Attacks . | . . . . . . Total Damage . | . . . . . . Kills . | . . . . . . Allies Corrupted . | . . . . . . Allies Melted . | . . . . . . Intel | -11 -10 -10 -10 -9 -8 ------- Run | Yrd Mat Min Exi Min Mat Robot Analysis Total 2 | . 2 . . . . Derelict Logs Recovered 3 | . . 1 . 2 . Drone Launches . | . . . . . . Drone Recoveries . | . . . . . . Exploration | -11 -10 -10 -10 -9 -8 ------------- Run | Yrd Mat Min Exi Min Mat Turns Passed 6741 | 188 1877 1213 423 1370 1670 Spaces Moved 3212 | 95 924 570 220 660 743 Core 21 | 7 . . . . 14 Treads . | . . . . . . Legs 3191 | 88 924 570 220 660 729 Wheels . | . . . . . . Hover . | . . . . . . Flight . | . . . . . . Fastest Speed 50 | 50 120 190 190 190 50 Average Speed 186 | 114 184 190 190 190 192 Slowest Speed 650 | 120 190 190 190 190 650 Overloaded Moves . | . . . . . . Propulsion Burnouts . | . . . . . . Robots Hopped . | . . . . . . Cave-ins Triggered . | . . . . . . Exploration Rate (%) 68 | 6 98 98 61 99 46 Regions Visited 5 Branch Regions 3 Pre-discovered Areas 1 | . . . . 1 . Known Exits Taken . | . . . . . . Unknown Exits Taken 5 | 1 1 1 1 1 . Scrap Searched 3 | . . 1 . 2 . Spaces Dug 25 | . . 9 . 16 . Terrain Destroyed 144 | . . 24 . 84 36 Melee . | . . . . . . Projectile 44 | . . . . 8 36 AOE 100 | . . 24 . 76 . Terrain Rammed . | . . . . . . Walls Destroyed . | . . . . . . Machines Disabled . | . . . . . . Actions | -11 -10 -10 -10 -9 -8 --------- Run | Yrd Mat Min Exi Min Mat Total 3787 | 140 1055 649 227 750 966 Wait 333 | 15 71 28 . 58 161 Move 3207 | 94 923 569 219 659 743 Hop . | . . . . . . Pick Up 41 | 7 17 . 3 2 12 Fast Attach 13 | 7 2 1 . . 3 Attach 7 | . . 1 1 3 2 Detach 1 | . . . . 1 . Swap 36 | . 5 12 . 8 11 Drop 51 | . 14 8 4 5 20 Fire 95 | 17 23 28 . 14 13 Melee 2 | . . 2 . . . Ram 1 | . . . . . 1 Kick . | . . . . . . Crush . | . . . . . . Escape Stasis . | . . . . . . Rewire . | . . . . . . Trap . | . . . . . . Miscellaneous . | . . . . . . Route ------- -11/Scrapyard -10/Materials (discovered 5 exits: [*Mat x3] / [*Min x2]) -10/Mines (discovered 3 exits: [*Mat x2] / *Exi) -10/Exiles -9/Mines (discovered 2 exits: *Mat x2) -8/Materials (discovered 3 exits: *Fac x3) History --------- Turn | Location | Event 3 | -11/Scrapyard | Discovered new exit (range 16) 189 | -11/Scrapyard | Entered Materials 324 | -10/Materials | Build established: Mutant 420 | -10/Materials | Discovered new exit (range 7) 464 | -10/Materials | Discovered new exit (range 8) 915 | -10/Materials | Discovered new exit (range 9) 1298 | -10/Materials | Discovered new exit (range 8) 1899 | -10/Materials | Discovered new exit (range 16) 2066 | -10/Materials | Entered Mines 2086 | -10/Mines | Met a Derelict bent on vengeance 2094 | -10/Mines | Discovered new exit (range 10) 2249 | -10/Mines | Discovered new exit (range 15) 2394 | -10/Mines | Learned location of 1 exit from Materials 2588 | -10/Mines | Build established: Scavenger-Mutant 2933 | -10/Mines | Deemed a non-threat by the Exiles lab entrance 2935 | -10/Mines | Discovered new exit (range 5) 3279 | -10/Mines | Entered Exiles 3327 | -10/Exiles | Met 8R-AWN 3357 | -10/Exiles | Met EX-HEX 3416 | -10/Exiles | Met EX-BIN 3439 | -10/Exiles | Aligned with FarCom system 3441 | -10/Exiles | Given EX-Vault access code 3485 | -10/Exiles | Opened EX-Vault 3512 | -10/Exiles | Found AWS/Gauss 3561 | -10/Exiles | Warned to stay clear of 0b10 Research branches 3614 | -10/Exiles | Met EX-DEC 3681 | -10/Exiles | Discovered new exit (range 14) 3702 | -10/Exiles | Left Exiles lab with AWS/Gauss 3702 | -10/Exiles | Entered Mines 3765 | -9/Mines | Assembled infested the area 3828 | -9/Mines | Core integrity fell below 50% 4156 | -9/Mines | Discovered new exit (range 7) 4281 | -9/Mines | Discovered new exit (range 10) 4359 | -9/Mines | Learned location of Zion (-7) 4958 | -9/Mines | Learned 2 Materials zone layouts 5072 | -9/Mines | Entered Materials 5072 | -8/Materials | Evolved 4 slots: Propulsion x1, Utility x1, Weapon x2 5073 | -8/Materials | Identified exit to Factory 5679 | -8/Materials | Build established: Skirmisher 5907 | -8/Materials | Discovered exit to Factory (range 13) 6721 | -8/Materials | Core integrity fell below 50% 6723 | -8/Materials | Found Prototype Device 6723 | -8/Materials | Identified Active Sensor Suite 6737 | -8/Materials | Core integrity fell below 20% 6742 | -8/Materials | Destroyed by G-47 Trooper with Particle Gun Last Messages --------------- 06713_ Adv. Beam Cannon destroyed. 06715_ K-01 Serf collects debris. 06715_ Dropped Broken Carbon-fiber Leg. 06715_ K-01 Serf collects debris. 06715_ Dropped Broken AWS/Gauss. 06716_ Dropped Adv. Beam Cannon. 06718_ K-01 Serf collects debris. 06720_ Dropped Lrg. Storage Unit. 06721_ K-01 Serf collects debris. 06723_ Acquired Prototype Device. 06723_ Identified Active Sensor Suite. 06724_ K-01 Serf collects debris. 06726_ Acquired Rnf. Deuterium Engine. 06727_ K-01 Serf collects debris. 06730_ Slammed into K-01 Serf. 06735_ Active Sensor Suite destroyed. 06739_ Connecting with Terminal... 06739_ ALERT: Suspicious activity at Terminal M011. Dispatching Investigation squad. 06740_ U-05 Engineer builds a Door. Map ----- +----------------------------------------------------+ | #""" ## ## ##???###??????????## # | | # ########## #########?????????##!! """" # | | #""" ########## #########?????????## """" # | | #""" ##??????## ##????????###! "" " + | | #""" ##??????## ? ##????????###! # | | # ##??????## ? ##????????## % # | | # ##??????######?## ##????????### # | | ####################?## ##????????### ! # | | ############### ####### ###??????###########+## | | ####################### %#################### | | !% % ####### ##???###### | | =!! % ^^ ??? | | %!%[ %= ^^ ????????? | | ######################][=]! ^^ ????????? | | ######################/!!%[####### ##????????? | | ##????????????###u!|###############????????? | | " """ ##????????????### !!###??????######????????? | | " """ ##?????????????##=%=##?????????????????????? | | " """ ##?????????????##%g!#############??????????? | | " """ ##?????????????##= %#############??????????? | | " """ ###########???### !## ##??????????? | | #################g g## ##??????????? | | ######??## #######k # ##??????????? | | ######??## ] # ##??????????? | | ???????? # T + ##??????????? | | ???????? # @u# ##??????????? | | ????????"# ####### ! # [ ##??????????? | | ????????"## ###########k## ! ##??????????? | | ????????"## #####?#####u#############??????????? | | ?????????## # ##????## #############??????????? | | ?????????## ##????## ##?????????????????????? | | ?????????## # ##????##[##?????????????????????? | | ?????????## ###########%##?????????????????????? | | # ### ###########k! ########??????#####? | | + ### =|! ^ ############? | | # ### !!T w ^ ? | | # ### [%! ^ ########### ? | | #####+##################k ########?# # ? | | # ############ ########### """ # ? | | # # """ #?????????## # # """ # ? | | # # """ ############ g # # """ + ? | | + + """ ## + gw # """ # ? | | ###### # ## # # # # ? | | # # # ## """ """ # < # """ """ # # ? | | #"" + ######### """ """ # # """ """ # "S # ? | | #"T # #???????# """ """ ##### """ """ # """ # ? | | #"" # ######### #???# # "" + ? | | # # + #???########### # ? | | # #### ###### ####################### ? | | # #??# #????###+######## # # ? | +----------------------------------------------------+ Best States ------------- Heat Dissipation 58 Energy Generation 16 Energy Capacity 290 Matter Stores 300 Matter Capacity 300 Sight Range 16 Robot Scan Range 20 Terrain Scan Range 16 Terrain Scan Density 10 Evasion (%) 55 Item Schematics ----------------- Huge Storage Unit | -10/Materials | Hacked Robot Schematics ------------------ None Fabricated ------------ Nothing Alien Tech Used ----------------- None Achievements -------------- Quantum Hacking Challenges ------------ None Game ------ Seed MagneticSegregatorExpander Manual? 0 Play Time 01:01:53 Cumulative 34.2 hours Start 2024.03.28 @ 00:17:21 End 2024.03.28 @ 01:50:13 Sessions 1 Manual Loads 0 Difficulty Rogue Special Mode None Game No. 44 Rogue 44 Adventurer 0 Explorer 0 Win Type - Total 1 Types 1/0/0/0/0/0/0/0/0 Lore% 25 Gallery% 32 Achievement% 32 Wizard Run 0 Options --------- Layout 2 ASCII 0 Keyboard 1 Movement Numpad Keybinds 0 Fullscreen 1 Font 16/SmallcapsGlow Map View 55x47 Zoom Use 0% Tactical HUD 1 Map Filters NONE Filters NONE Steam 1 RUN: bca82c48-3efa-4f57-8166-45c41bc038ff